[Event "Athens of East Open 2019"]
[Site "Madurai"]
[Date "2019.08.10"]
[Round "1.1"]
[White "Abdallah M Nisthar"]
[Black "Salim, Yoosuf"]
[Result "1-0"]
[ECO "A01"]
[WhiteElo "1699"]
[BlackElo "1361"]
[Annotator "NA"]
[PlyCount "106"]
[EventDate "2019.08.10"]
[EventType "swiss"]
[EventCountry "IND"]
[SourceTitle "playchess.com"]
[Source "ChessBase"]
[SourceQuality "1"]
[TimeControl "3600+30"]

1. b3 {[%emt 0:00:00]} c5 {[%emt 0:00:39]} 2. Bb2 {[%emt 0:00:03]} d5 {[%emt 0:00:14]} 3. Nf3 {[%emt 0:00:43]} Nc6 {[%emt 0:00:12]} 4. e3 {[%emt 0:00:39]} e6 {[%emt 0:00:35]} 5. Bb5 {[%emt 0:03:11]} Bd7 {[%emt 0:00:25]} 6. O-O {[%emt 0:00:41]} Nf6 7. Nc3 {[%emt 0:04:44]} Bd6 {[%emt 0:00:49]} 8. Ne2 {[%emt 0:04:11]} O-O 9. Ng3 {[%emt 0:02:32]} a6 {[%emt 0:02:10]} 10. Bxc6 {[%emt 0:00:43]} Bxc6 11. Ne5 {[%emt 0:10:43]} Bb5 {[%emt 0:03:17]} 12. d3 {[%emt 0:10:32]} Qc7 {[%emt 0:11:40]} 13. f4 c4 {[%emt 0:06:09]} 14. Bd4 {[%emt 0:03:25]} Rac8 {[%emt 0:06:50]} 15. a4 cxb3 {[%emt 0:06:51]} 16. axb5 {[%emt 0:08:01]} bxc2 {[%emt 0:00:09]} 17. Qc1 {[%emt 0:00:02]} axb5 {[%emt 0:00:28]} 18. Qb2 {[%emt 0:00:19]} Ra8 {[%emt 0:02:13]} 19. Rxa8 {[%emt 0:02:53]} Rxa8 {[%emt 0:00:08]} 20. Rc1 {[%emt 0:00:06]} Rc8 {[%emt 0:10:24]} 21. Nf3 {[%emt 0:00:12]} b4 {[%emt 0:03:46]} 22. Ne1 Qa5 {[%emt 0:03:48]} 23. Rxc2 {[%emt 0:02:06]} Rxc2 {[%emt 0:00:55]} 24. Nxc2 Qa4 {[%emt 0:05:18]} 25. Nf1 {[%emt 0:06:23]} Qb5 {[%emt 0:02:04]} 26. Ne1 {[%emt 0:03:29]} Qa4 27. Qa1 {[%emt 0:03:37]} b5 {[%emt 0:01:38]} 28. Nd2 {[%emt 0:00:54]} b3 {[%emt 0:00:29]} 29. Qb2 {[%emt 0:00:33]} Bb4 {[%emt 0:00:58]} 30. Nef3 {[%emt 0:00:15]} Bxd2 {[%emt 0:00:59]} 31. Nxd2 {[%emt 0:00:03]} Qb4 {[%emt 0:00:36]} 32. Qc3 {[%emt 0:02:00]} Qf8 {[%emt 0:01:11]} 33. Bxf6 {[%emt 0:00:19]} gxf6 {[%emt 0:00:04]} 34. Nxb3 {[%emt 0:01:27]} Qa3 {[%emt 0:00:18]} 35. Qc2 {[%emt 0:00:11]} b4 {[%emt 0:00:08]} 36. h4 {[%emt 0:00:22]} Kg7 {[%emt 0:00:12]} 37. Kf2 {[%emt 0:00:30]} e5 {[%emt 0:00:06]} 38. g3 {[%emt 0:00:28]} Qa4 {[%emt 0:00:32]} 39. Qb2 {[%emt 0:00:52]} Qa3 {[%emt 0:00:21]} 40. Qxa3 {[%emt 0:00:50]} bxa3 {[%emt 0:00:02]} 41. Nc1 {[%emt 0:01:25]} Kg6 {[%emt 0:00:14]} 42. Kf3 Kf5 {[%emt 0:01:03]} 43. g4+ {[%emt 0:01:08]} Ke6 {[%emt 0:00:38]} 44. f5+ {[%emt 0:00:19]} Kd6 {[%emt 0:00:27]} 45. Ke2 {[%emt 0:00:03]} Kc5 {[%emt 0:00:26]} 46. Kd2 {[%emt 0:00:22]} Kb4 {[%emt 0:00:32]} 47. Kc2 {[%emt 0:00:11]} e4 {[%emt 0:00:21]} 48. d4 {[%emt 0:01:04]} Kc4 {[%emt 0:00:35]} 49. Na2 {[%emt 0:00:09]} h6 {[%emt 0:00:34]} 50. h5 {[%emt 0:00:13]} Kb5 {[%emt 0:00:57]} 51. Kb3 {[%emt 0:00:02]} Kb6 {[%emt 0:00:24]} 52. Kxa3 {[%emt 0:00:03]} Ka5 {[%emt 0:00:03]} 53. Nc3 {[%emt 0:00:02]} Kb6 1-0

[Event "Athens of East Open 2019"]
[Site "Madurai"]
[Date "2019.08.10"]
[Round "1.2"]
[White "Karthikeyan G"]
[Black "Sankaranarayanan.K"]
[Result "0-1"]
[ECO "B00"]
[WhiteElo "1411"]
[BlackElo "1695"]
[Annotator "NA"]
[PlyCount "150"]
[EventDate "2019.08.10"]
[EventType "swiss"]
[EventCountry "IND"]
[SourceTitle "playchess.com"]
[Source "ChessBase"]
[SourceQuality "1"]
[TimeControl "3600+30"]

1. e4 {[%emt 0:00:00]} g5 {[%emt 0:01:01]} 2. d4 {[%emt 0:00:00]} Bg7 {[%emt 0:00:10]} 3. Bxg5 {[%emt 0:02:27]} c5 4. Nd2 {[%emt 0:12:21]} Bxd4 {[%emt 0:01:09]} 5. c3 {[%emt 0:00:18]} Bg7 {[%emt 0:00:07]} 6. Bc4 {[%emt 0:00:27]} Qb6 {[%emt 0:01:42]} 7. Qc2 {[%emt 0:08:24]} Qg6 {[%emt 0:01:05]} 8. Ngf3 {[%emt 0:00:14]} Nc6 {[%emt 0:00:27]} 9. Be3 {[%emt 0:01:08]} b6 {[%emt 0:02:28]} 10. O-O {[%emt 0:04:54]} Nh6 {[%emt 0:04:10]} 11. Rfe1 {[%emt 0:10:58]} Ng4 {[%emt 0:01:47]} 12. Bf4 {[%emt 0:01:26]} Rg8 {[%emt 0:02:39]} 13. Bg3 {[%emt 0:07:36]} h5 {[%emt 0:02:53]} 14. Nh4 {[%emt 0:00:46]} Qh7 {[%emt 0:01:16]} 15. f4 {[%emt 0:00:40]} Bf6 {[%emt 0:03:57]} 16. Ndf3 {[%emt 0:00:32]} d6 {[%emt 0:01:00]} 17. Bb5 {[%emt 0:02:05]} Bd7 {[%emt 0:01:32]} 18. Rad1 {[%emt 0:01:01]} a6 {[%emt 0:01:33]} 19. Bd3 {[%emt 0:00:22]} Qh6 {[%emt 0:01:02]} 20. Qd2 {[%emt 0:01:52]} b5 {[%emt 0:03:08]} 21. e5 {[%emt 0:02:30]} Bxh4 {[%emt 0:06:34]} 22. Nxh4 {[%emt 0:02:13]} d5 {[%emt 0:01:12]} 23. Nf5 {[%emt 0:02:43]} Bxf5 {[%emt 0:00:39]} 24. Bxf5 {[%emt 0:00:08]} e6 {[%emt 0:00:04]} 25. Bxg4 {[%emt 0:00:35]} Rxg4 {[%emt 0:00:26]} 26. f5 {[%emt 0:00:28]} Qg7 {[%emt 0:02:11]} 27. fxe6 {[%emt 0:01:53]} fxe6 {[%emt 0:00:05]} 28. Qf2 {[%emt 0:00:14]} Rc8 {[%emt 0:02:23]} 29. Rf1 {[%emt 0:00:57]} Ne7 {[%emt 0:02:44]} 30. Qf6 {[%emt 0:01:09]} Kd7 {[%emt 0:02:02]} 31. Qxg7 {[%emt 0:01:00]} Rxg7 {[%emt 0:01:16]} 32. Rf2 {[%emt 0:00:33]} Nf5 {[%emt 0:00:08]} 33. Bf4 {[%emt 0:01:26]} Rcg8 {[%emt 0:00:19]} 34. Rdd2 {[%emt 0:00:37]} h4 {[%emt 0:00:15]} 35. h3 {[%emt 0:00:11]} Kc6 {[%emt 0:00:21]} 36. Kh2 {[%emt 0:00:31]} a5 {[%emt 0:00:08]} 37. Rd3 {[%emt 0:00:50]} c4 {[%emt 0:00:45]} 38. Rdd2 {[%emt 0:00:12]} b4 {[%emt 0:00:08]} 39. a4 {[%emt 0:00:28]} Ng3 {[%emt 0:01:23]} 40. Rf3 {[%emt 0:00:25]} Ne4 {[%emt 0:00:39]} 41. Re2 {[%emt 0:00:19]} Ng3 {[%emt 0:01:21]} 42. Rd2 {[%emt 0:00:08]} Nf5 {[%emt 0:00:20]} 43. Re2 {[%emt 0:00:19]} Kc5 {[%emt 0:00:16]} 44. Be3+ {[%emt 0:00:34]} Nxe3 {[%emt 0:00:30]} 45. Rfxe3 {[%emt 0:00:07]} bxc3 {[%emt 0:00:11]} 46. bxc3 {[%emt 0:00:02]} Rb8 {[%emt 0:00:39]} 47. Rf3 {[%emt 0:01:51]} Rb3 {[%emt 0:00:15]} 48. Rf6 {[%emt 0:02:13]} Re7 {[%emt 0:00:18]} 49. Rc2 {[%emt 0:00:39]} Ra3 {[%emt 0:00:37]} 50. Rh6 {[%emt 0:00:45]} Rxa4 {[%emt 0:00:09]} 51. Rxh4 {[%emt 0:00:07]} Ra1 {[%emt 0:00:04]} 52. Rh8 {[%emt 0:00:14]} Re1 {[%emt 0:00:28]} 53. Rb2 {[%emt 0:01:48]} Rc7 {[%emt 0:00:24]} 54. Rhb8 {[%emt 0:00:21]} Rxe5 {[%emt 0:00:23]} 55. R8b6 {[%emt 0:00:15]} Rc6 {[%emt 0:00:21]} 56. R6b5+ {[%emt 0:00:47]} Kd6 {[%emt 0:00:09]} 57. Rxa5 {[%emt 0:00:09]} Re3 {[%emt 0:00:12]} 58. Rc2 {[%emt 0:00:47]} Rb6 {[%emt 0:00:04]} 59. Ra8 {[%emt 0:00:49]} Rb3 {[%emt 0:00:15]} 60. h4 {[%emt 0:00:25]} Rbxc3 {[%emt 0:01:13]} 61. Rf2 {[%emt 0:00:25]} Rg3 {[%emt 0:00:20]} 62. Ra6+ {[%emt 0:00:34]} Ke5 {[%emt 0:00:06]} 63. Re2+ {[%emt 0:00:29]} Rce3 {[%emt 0:00:12]} 64. Rxe3+ {[%emt 0:00:31]} Rxe3 {[%emt 0:00:04]} 65. Ra8 {[%emt 0:00:24]} c3 {[%emt 0:00:30]} 66. Rc8 {[%emt 0:00:35]} d4 {[%emt 0:00:06]} 67. Kg1 {[%emt 0:00:14]} Kf4 {[%emt 0:00:21]} 68. Kf2 {[%emt 0:00:11]} Kg4 {[%emt 0:00:52]} 69. Rh8 {[%emt 0:00:34]} Re5 {[%emt 0:00:16]} 70. h5 {[%emt 0:01:11]} c2 {[%emt 0:00:31]} 71. Rc8 {[%emt 0:00:18]} d3 {[%emt 0:00:04]} 72. h6 {[%emt 0:00:23]} d2 {[%emt 0:00:26]} 73. Rg8+ {[%emt 0:00:56]} Kf4 {[%emt 0:00:15]} 74. Rf8+ {[%emt 0:00:20]} Ke4 {[%emt 0:00:09]} 75. h7 {[%emt 0:00:18]} Rh5 {[%emt 0:00:16]} 0-1

[Event "Athens of East Open 2019"]
[Site "Madurai"]
[Date "2019.08.10"]
[Round "1.3"]
[White "Abishek A"]
[Black "Siddik Akbar"]
[Result "1-0"]
[ECO "A48"]
[WhiteElo "1693"]
[BlackElo "1395"]
[Annotator "NA"]
[PlyCount "115"]
[EventDate "2019.08.10"]
[EventType "swiss"]
[EventCountry "IND"]
[SourceTitle "playchess.com"]
[Source "ChessBase"]
[SourceQuality "1"]
[TimeControl "3600+30"]

1. d4 {[%emt 0:00:00]} Nf6 {[%emt 0:00:00]} 2. Nf3 {[%emt 0:00:07]} g6 {[%emt 0:00:08]} 3. Bf4 {[%emt 0:00:37]} Bg7 {[%emt 0:00:12]} 4. e3 {[%emt 0:00:18]} O-O {[%emt 0:00:12]} 5. Be2 {[%emt 0:00:13]} d6 {[%emt 0:00:13]} 6. h3 {[%emt 0:00:10]} c5 {[%emt 0:01:04]} 7. c3 {[%emt 0:00:38]} Be6 {[%emt 0:00:54]} 8. Nbd2 {[%emt 0:00:57]} Qb6 9. Qb1 {[%emt 0:14:35]} Nc6 {[%emt 0:03:55]} 10. Nc4 {[%emt 0:05:07]} Bxc4 {[%emt 0:01:48]} 11. Bxc4 {[%emt 0:00:10]} Rac8 {[%emt 0:04:17]} 12. Bd3 {[%emt 0:05:38]} Rfe8 {[%emt 0:03:56]} 13. dxc5 {[%emt 0:02:16]} Qxc5 {[%emt 0:01:42]} 14. Nd2 {[%emt 0:07:14]} e5 {[%emt 0:11:56]} 15. Bg5 {[%emt 0:02:18]} d5 {[%emt 0:01:31]} 16. O-O {[%emt 0:04:28]} e4 {[%emt 0:06:36]} 17. Be2 {[%emt 0:00:40]} Nd7 {[%emt 0:04:12]} 18. Nb3 {[%emt 0:01:04]} Qf8 {[%emt 0:03:47]} 19. Rd1 {[%emt 0:01:30]} Nb6 {[%emt 0:00:37]} 20. a4 {[%emt 0:01:16]} h6 {[%emt 0:03:24]} 21. Bf4 {[%emt 0:00:35]} Rcd8 {[%emt 0:01:19]} 22. a5 {[%emt 0:01:20]} Nc4 {[%emt 0:01:22]} 23. Bc7 {[%emt 0:00:19]} Rc8 {[%emt 0:01:54]} 24. Bxc4 {[%emt 0:00:14]} dxc4 {[%emt 0:00:20]} 25. Bd6 {[%emt 0:00:07]} Ne7 {[%emt 0:01:34]} 26. Nc5 {[%emt 0:00:15]} f5 {[%emt 0:04:06]} 27. Nxb7 {[%emt 0:01:37]} a6 {[%emt 0:03:42]} 28. Qa2 {[%emt 0:01:44]} Rc6 {[%emt 0:03:37]} 29. Nc5 {[%emt 0:03:03]} Qf7 {[%emt 0:00:23]} 30. Qa4 {[%emt 0:03:18]} Rec8 {[%emt 0:02:22]} 31. Bxe7 {[%emt 0:00:48]} Qxe7 {[%emt 0:00:01]} 32. Nd7 {[%emt 0:00:07]} Rd6 {[%emt 0:02:06]} 33. Rxd6 {[%emt 0:00:58]} Qxd6 {[%emt 0:00:02]} 34. Rd1 {[%emt 0:00:07]} Qc6 {[%emt 0:00:54]} 35. Qxc6 {[%emt 0:00:04]} Rxc6 {[%emt 0:00:02]} 36. Rd5 {[%emt 0:01:36]} Bf8 {[%emt 0:01:31]} 37. Nb8 {[%emt 0:00:48]} Re6 {[%emt 0:00:49]} 38. Rd8 {[%emt 0:04:13]} Kf7 {[%emt 0:01:19]} 39. Rd7+ {[%emt 0:00:17]} Re7 {[%emt 0:00:43]} 40. Rxe7+ Bxe7 {[%emt 0:00:02]} 41. Nxa6 Bd8 42. Kf1 {[%emt 0:03:09]} Bxa5 {[%emt 0:00:03]} 43. Ke2 {[%emt 0:00:23]} Ke6 {[%emt 0:00:57]} 44. Kd2 {[%emt 0:00:25]} Kd5 {[%emt 0:01:02]} 45. Kc2 {[%emt 0:01:13]} g5 {[%emt 0:01:02]} 46. b3 {[%emt 0:01:28]} cxb3+ {[%emt 0:00:02]} 47. Kxb3 f4 {[%emt 0:00:18]} 48. Nb4+ {[%emt 0:00:16]} Kc5 {[%emt 0:01:18]} 49. Nc2 {[%emt 0:00:02]} h5 {[%emt 0:00:38]} 50. Nd4 {[%emt 0:02:38]} Kd5 {[%emt 0:00:31]} 51. g4 {[%emt 0:02:21]} hxg4 {[%emt 0:00:25]} 52. hxg4 {[%emt 0:00:02]} fxe3 {[%emt 0:00:26]} 53. fxe3 {[%emt 0:00:02]} Bc7 {[%emt 0:00:41]} 54. c4+ {[%emt 0:00:24]} Ke5 {[%emt 0:00:31]} 55. Kb4 {[%emt 0:00:10]} Kd6 {[%emt 0:00:19]} 56. Nb5+ {[%emt 0:00:02]} Kc6 {[%emt 0:00:02]} 57. Nxc7 {[%emt 0:00:02]} Kxc7 {[%emt 0:00:01]} 58. Kc5 {[%emt 0:00:01]} 1-0

[Event "Athens of East Open 2019"]
[Site "Madurai"]
[Date "2019.08.10"]
[Round "1.4"]
[White "Sanjay Srinivasan R"]
[Black "Afreed T Khan"]
[Result "1-0"]
[ECO "B06"]
[WhiteElo "1355"]
[BlackElo "1693"]
[Annotator "NA"]
[PlyCount "94"]
[EventDate "2019.08.10"]
[EventType "swiss"]
[EventCountry "IND"]
[SourceTitle "playchess.com"]
[Source "ChessBase"]
[SourceQuality "1"]
[TimeControl "3600+30"]

1. e4 {[%emt 0:00:00]} g6 {[%emt 0:00:00]} 2. d4 {[%emt 0:00:00]} Bg7 {[%emt 0:00:00]} 3. Nc3 {[%emt 0:00:00]} d6 {[%emt 0:00:00]} 4. f4 {[%emt 0:00:01]} a6 {[%emt 0:00:00]} 5. Nf3 {[%emt 0:00:06]} b5 {[%emt 0:00:06]} 6. a3 {[%emt 0:00:06]} Nd7 {[%emt 0:00:07]} 7. Bd3 {[%emt 0:00:10]} c5 {[%emt 0:00:11]} 8. Be3 {[%emt 0:02:21]} cxd4 {[%emt 0:01:11]} 9. Nxd4 {[%emt 0:01:12]} Ngf6 10. Nb3 {[%emt 0:06:36]} O-O {[%emt 0:01:28]} 11. O-O {[%emt 0:00:32]} Bb7 {[%emt 0:00:19]} 12. h3 {[%emt 0:05:08]} Rc8 {[%emt 0:00:43]} 13. Qe1 {[%emt 0:00:48]} Nc5 14. Nxc5 {[%emt 0:07:37]} dxc5 {[%emt 0:01:34]} 15. Rd1 {[%emt 0:00:25]} Qc7 {[%emt 0:02:05]} 16. e5 {[%emt 0:02:15]} Nd7 {[%emt 0:01:49]} 17. Be4 {[%emt 0:10:11]} Nb6 {[%emt 0:10:27]} 18. Nd5 {[%emt 0:01:51]} Bxd5 {[%emt 0:03:55]} 19. Bxd5 {[%emt 0:00:15]} Rfd8 {[%emt 0:00:51]} 20. Be4 {[%emt 0:15:31]} Nc4 {[%emt 0:01:15]} 21. Bc1 {[%emt 0:00:14]} Rxd1 {[%emt 0:06:01]} 22. Qxd1 {[%emt 0:00:02]} Rd8 {[%emt 0:00:15]} 23. Qe2 {[%emt 0:00:07]} f6 {[%emt 0:01:08]} 24. b3 {[%emt 0:01:20]} Nb6 {[%emt 0:01:03]} 25. exf6 {[%emt 0:00:19]} Bxf6 {[%emt 0:03:41]} 26. f5 {[%emt 0:01:02]} Qe5 {[%emt 0:12:03]} 27. fxg6 {[%emt 0:02:21]} hxg6 {[%emt 0:00:36]} 28. Qg4 {[%emt 0:00:20]} g5 {[%emt 0:02:04]} 29. h4 {[%emt 0:03:06]} Kg7 {[%emt 0:05:31]} 30. Bxg5 {[%emt 0:06:06]} Bxg5 {[%emt 0:00:19]} 31. Rf5 {[%emt 0:00:01]} Rd1+ {[%emt 0:07:57]} 32. Qxd1 {[%emt 0:00:33]} Be3+ {[%emt 0:00:16]} 33. Kf1 {[%emt 0:00:19]} Qxe4 {[%emt 0:04:11]} 34. Qh5 {[%emt 0:00:16]} Qe6 {[%emt 0:00:57]} 35. Qg4+ {[%emt 0:01:48]} Qg6 {[%emt 0:00:17]} 36. Qxg6+ {[%emt 0:01:03]} Kxg6 {[%emt 0:00:36]} 37. Re5 {[%emt 0:00:01]} Kf6 {[%emt 0:03:04]} 38. Rxe3 {[%emt 0:00:02]} e5 {[%emt 0:00:10]} 39. Rg3 {[%emt 0:00:12]} Nd7 {[%emt 0:01:46]} 40. h5 {[%emt 0:00:10]} Nf8 {[%emt 0:00:08]} 41. h6 {[%emt 0:00:49]} e4 {[%emt 0:00:39]} 42. Ke2 {[%emt 0:00:07]} Nh7 {[%emt 0:01:35]} 43. Rg7 {[%emt 0:00:21]} Nf8 {[%emt 0:00:08]} 44. Rg8 {[%emt 0:00:09]} Nh7 {[%emt 0:00:30]} 45. g4 {[%emt 0:00:14]} Ke5 {[%emt 0:00:32]} 46. g5 {[%emt 0:00:12]} Kd4 {[%emt 0:00:27]} 47. Rg7 {[%emt 0:00:19]} Nf8 1-0

[Event "Athens of East Open 2019"]
[Site "Madurai"]
[Date "2019.08.10"]
[Round "2.1"]
[White "M Tulasi Ram, Kumar"]
[Black "Abdallah M Nisthar"]
[Result "1/2-1/2"]
[ECO "B20"]
[WhiteElo "1495"]
[BlackElo "1699"]
[Annotator "NA"]
[PlyCount "70"]
[EventDate "2019.08.10"]
[EventType "swiss"]
[EventCountry "IND"]
[SourceTitle "playchess.com"]
[Source "ChessBase"]
[SourceQuality "1"]
[TimeControl "3600+30"]

1. e4 {[%emt 0:02:18]} c5 {[%emt 0:00:26]} 2. Bc4 {[%emt 0:00:06]} e6 {[%emt 0:00:28]} 3. Nf3 {[%emt 0:00:37]} d5 {[%emt 0:00:59]} 4. exd5 {[%emt 0:00:25]} exd5 {[%emt 0:00:05]} 5. Bb3 {[%emt 0:00:14]} Nf6 {[%emt 0:00:48]} 6. O-O {[%emt 0:00:20]} Be7 {[%emt 0:01:21]} 7. c3 {[%emt 0:00:13]} O-O {[%emt 0:04:33]} 8. d4 {[%emt 0:00:46]} c4 {[%emt 0:02:58]} 9. Bc2 {[%emt 0:00:30]} Bg4 {[%emt 0:00:32]} 10. Nbd2 {[%emt 0:00:25]} Nc6 {[%emt 0:01:15]} 11. Re1 {[%emt 0:00:25]} b5 {[%emt 0:06:15]} 12. Nf1 {[%emt 0:00:42]} Bh5 {[%emt 0:02:58]} 13. Ne3 {[%emt 0:00:58]} Bg6 {[%emt 0:18:28]} 14. Nf5 {[%emt 0:00:17]} Ne4 {[%emt 0:04:19]} 15. Nxe7+ Nxe7 {[%emt 0:04:19]} 16. Ne5 {[%emt 0:03:30]} Nd6 {[%emt 0:01:45]} 17. Nxg6 hxg6 {[%emt 0:02:13]} 18. a3 {[%emt 0:03:22]} Qd7 {[%emt 0:01:02]} 19. Bf4 {[%emt 0:01:43]} Nec8 {[%emt 0:01:46]} 20. Qf3 {[%emt 0:00:44]} Nb6 {[%emt 0:00:02]} 21. Qg3 {[%emt 0:01:18]} Nf5 {[%emt 0:00:08]} 22. Qg5 {[%emt 0:01:09]} Rae8 {[%emt 0:01:07]} 23. Bxf5 {[%emt 0:00:46]} Qxf5 {[%emt 0:00:16]} 24. Qxf5 {[%emt 0:00:34]} gxf5 25. Bd6 {[%emt 0:01:04]} Rxe1+ {[%emt 0:00:48]} 26. Rxe1 {[%emt 0:00:17]} Rd8 {[%emt 0:01:03]} 27. Bc7 {[%emt 0:00:56]} Rd7 {[%emt 0:01:03]} 28. Bxb6 {[%emt 0:02:52]} axb6 {[%emt 0:00:01]} 29. Re8+ {[%emt 0:00:54]} Kh7 {[%emt 0:00:01]} 30. Rb8 {[%emt 0:00:26]} Rd6 {[%emt 0:00:01]} 31. Kf1 {[%emt 0:00:21]} Kg6 {[%emt 0:00:41]} 32. f4 {[%emt 0:00:14]} Kf6 {[%emt 0:02:40]} 33. h4 {[%emt 0:00:54]} Ke7 {[%emt 0:02:54]} 34. Rb7+ {[%emt 0:00:08]} Kf6 {[%emt 0:00:55]} 35. Kf2 {[%emt 0:00:20]} g6 1/2-1/2

[Event "Athens of East Open 2019"]
[Site "Madurai"]
[Date "2019.08.10"]
[Round "2.2"]
[White "Sankaranarayanan.K"]
[Black "Satheesh Kumar G"]
[Result "1-0"]
[ECO "D35"]
[WhiteElo "1695"]
[BlackElo "1437"]
[Annotator "NA"]
[PlyCount "121"]
[EventDate "2019.08.10"]
[EventType "swiss"]
[EventCountry "IND"]
[SourceTitle "playchess.com"]
[Source "ChessBase"]
[SourceQuality "1"]
[TimeControl "3600+30"]

1. d4 {[%emt 0:00:01]} d5 {[%emt 0:00:04]} 2. c4 {[%emt 0:00:06]} e6 {[%emt 0:00:07]} 3. Nc3 {[%emt 0:00:04]} Nf6 {[%emt 0:00:08]} 4. e3 {[%emt 0:00:15]} Be7 {[%emt 0:00:30]} 5. Nf3 {[%emt 0:00:07]} O-O {[%emt 0:00:11]} 6. Be2 {[%emt 0:00:03]} b6 {[%emt 0:01:36]} 7. O-O {[%emt 0:00:12]} Bb7 {[%emt 0:00:03]} 8. Bd2 {[%emt 0:01:16]} c5 {[%emt 0:00:26]} 9. cxd5 {[%emt 0:00:50]} cxd4 {[%emt 0:06:29]} 10. exd4 {[%emt 0:00:54]} Nxd5 {[%emt 0:00:07]} 11. Rc1 {[%emt 0:01:12]} Nd7 {[%emt 0:05:53]} 12. Re1 {[%emt 0:01:31]} N7f6 {[%emt 0:03:04]} 13. Bd3 {[%emt 0:02:44]} Nb4 {[%emt 0:14:00]} 14. Bb1 {[%emt 0:05:04]} Bxf3 {[%emt 0:06:22]} 15. Qxf3 {[%emt 0:00:28]} Qxd4 {[%emt 0:00:52]} 16. Be3 {[%emt 0:02:52]} Qg4 {[%emt 0:03:03]} 17. Qb7 {[%emt 0:01:32]} Bd6 {[%emt 0:08:30]} 18. h3 {[%emt 0:01:46]} Qh5 {[%emt 0:00:51]} 19. Ne4 {[%emt 0:02:16]} Qd5 {[%emt 0:10:38]} 20. Qxd5 {[%emt 0:01:02]} Nfxd5 {[%emt 0:01:45]} 21. Nxd6 {[%emt 0:00:41]} Rfd8 {[%emt 0:00:39]} 22. Nb5 {[%emt 0:00:42]} a6 {[%emt 0:00:48]} 23. Nc7 {[%emt 0:01:03]} Rac8 {[%emt 0:02:09]} 24. Nxd5 {[%emt 0:00:39]} Nxd5 {[%emt 0:00:04]} 25. Rxc8 {[%emt 0:00:50]} Rxc8 {[%emt 0:00:03]} 26. Rc1 {[%emt 0:00:17]} Rd8 {[%emt 0:00:10]} 27. Rd1 {[%emt 0:00:15]} Rc8 {[%emt 0:00:32]} 28. Kf1 {[%emt 0:00:23]} f5 {[%emt 0:00:07]} 29. Ke2 {[%emt 0:01:03]} Kf7 {[%emt 0:00:14]} 30. h4 {[%emt 0:01:17]} b5 {[%emt 0:00:16]} 31. g3 {[%emt 0:00:44]} Rc4 {[%emt 0:00:44]} 32. Rd4 {[%emt 0:00:34]} Rc7 {[%emt 0:02:57]} 33. Bd2 {[%emt 0:01:21]} Rd7 {[%emt 0:00:28]} 34. f4 {[%emt 0:00:51]} h6 {[%emt 0:00:46]} 35. a4 {[%emt 0:00:44]} g5 {[%emt 0:01:18]} 36. axb5 {[%emt 0:00:40]} axb5 {[%emt 0:00:02]} 37. Bd3 {[%emt 0:00:23]} Nxf4+ {[%emt 0:00:21]} 38. Rxf4 {[%emt 0:00:38]} gxf4 {[%emt 0:00:02]} 39. Bxf4 {[%emt 0:00:03]} h5 {[%emt 0:00:35]} 40. Ke3 {[%emt 0:00:36]} Rd5 {[%emt 0:00:24]} 41. Be2 {[%emt 0:00:25]} Kg6 {[%emt 0:01:39]} 42. Bf3 {[%emt 0:00:46]} Rc5 {[%emt 0:00:14]} 43. Bd6 {[%emt 0:00:18]} Rc8 {[%emt 0:00:41]} 44. Kd4 {[%emt 0:01:14]} Rc2 {[%emt 0:01:28]} 45. b4 {[%emt 0:01:35]} Rc1 {[%emt 0:00:26]} 46. Be2 {[%emt 0:00:43]} Kf6 {[%emt 0:00:29]} 47. Be5+ {[%emt 0:00:20]} Kg6 {[%emt 0:00:09]} 48. Bxb5 {[%emt 0:00:04]} Re1 {[%emt 0:00:47]} 49. Be8+ {[%emt 0:00:37]} Kh6 {[%emt 0:00:10]} 50. Bf4+ {[%emt 0:00:12]} Kg7 {[%emt 0:00:06]} 51. b5 {[%emt 0:00:06]} Kf6 {[%emt 0:00:15]} 52. Bg5+ {[%emt 0:00:33]} Kg7 {[%emt 0:00:06]} 53. Bxh5 {[%emt 0:00:14]} e5+ {[%emt 0:00:18]} 54. Kd5 {[%emt 0:00:20]} Rb1 {[%emt 0:00:55]} 55. Be8 {[%emt 0:00:26]} e4 {[%emt 0:00:48]} 56. h5 {[%emt 0:00:14]} Rb3 {[%emt 0:00:26]} 57. h6+ {[%emt 0:02:13]} Kh7 {[%emt 0:00:02]} 58. Ke5 {[%emt 0:03:19]} Rxg3 {[%emt 0:01:33]} 59. Kxf5 {[%emt 0:00:15]} e3 {[%emt 0:01:08]} 60. Bg6+ {[%emt 0:00:11]} Kg8 {[%emt 0:00:26]} 61. h7+ {[%emt 0:00:17]} 1-0

[Event "Athens of East Open 2019"]
[Site "Madurai"]
[Date "2019.08.10"]
[Round "2.3"]
[White "Soumya, Ranjan Das"]
[Black "Abishek A"]
[Result "1/2-1/2"]
[ECO "B50"]
[WhiteElo "1740"]
[BlackElo "1693"]
[Annotator "NA"]
[PlyCount "73"]
[EventDate "2019.08.10"]
[EventType "swiss"]
[EventCountry "IND"]
[SourceTitle "playchess.com"]
[Source "ChessBase"]
[SourceQuality "1"]
[TimeControl "3600+30"]

1. e4 {[%emt 0:03:18]} c5 {[%emt 0:00:00]} 2. Nf3 {[%emt 0:00:40]} d6 {[%emt 0:00:04]} 3. g3 {[%emt 0:00:48]} Nc6 {[%emt 0:03:44]} 4. Bg2 {[%emt 0:00:05]} e5 {[%emt 0:01:12]} 5. d3 {[%emt 0:00:13]} Be7 {[%emt 0:00:58]} 6. O-O {[%emt 0:00:10]} Nf6 {[%emt 0:00:16]} 7. Nbd2 {[%emt 0:00:14]} O-O {[%emt 0:00:26]} 8. Re1 {[%emt 0:00:07]} b5 {[%emt 0:04:18]} 9. Nf1 {[%emt 0:00:14]} b4 {[%emt 0:04:40]} 10. Bg5 {[%emt 0:05:37]} a5 {[%emt 0:07:44]} 11. c3 {[%emt 0:01:41]} a4 {[%emt 0:04:45]} 12. a3 {[%emt 0:00:18]} b3 {[%emt 0:01:25]} 13. Ne3 {[%emt 0:00:07]} g6 {[%emt 0:02:19]} 14. h4 {[%emt 0:00:30]} Ng4 {[%emt 0:06:56]} 15. Nxg4 {[%emt 0:04:43]} Bxg4 {[%emt 0:00:12]} 16. Bh6 {[%emt 0:01:23]} Re8 {[%emt 0:00:51]} 17. Qd2 {[%emt 0:00:17]} Bf8 {[%emt 0:02:14]} 18. Bxf8 {[%emt 0:01:24]} Rxf8 {[%emt 0:00:07]} 19. Qh6 {[%emt 0:00:57]} Bxf3 {[%emt 0:01:02]} 20. Bxf3 {[%emt 0:00:11]} Qf6 {[%emt 0:00:16]} 21. Kg2 {[%emt 0:01:27]} Qg7 {[%emt 0:03:40]} 22. Qe3 {[%emt 0:00:04]} Ne7 {[%emt 0:05:06]} 23. h5 {[%emt 0:03:23]} g5 {[%emt 0:02:04]} 24. h6 {[%emt 0:00:40]} Qf6 {[%emt 0:02:30]} 25. Rh1 {[%emt 0:03:35]} Kh8 {[%emt 0:00:03]} 26. Rh5 {[%emt 0:02:53]} Rg8 {[%emt 0:00:01]} 27. Bg4 {[%emt 0:03:34]} Rad8 {[%emt 0:02:28]} 28. c4 {[%emt 0:01:24]} Nc6 {[%emt 0:00:29]} 29. Bf5 {[%emt 0:06:04]} Nd4 {[%emt 0:00:07]} 30. g4 {[%emt 0:00:17]} Nc2 {[%emt 0:02:42]} 31. Qc1 {[%emt 0:00:04]} Qe7 {[%emt 0:00:34]} 32. Rb1 {[%emt 0:01:30]} Nd4 {[%emt 0:01:09]} 33. Qd2 {[%emt 0:02:21]} Ne6 {[%emt 0:01:24]} 34. Bxe6 {[%emt 0:01:32]} Qxe6 {[%emt 0:02:15]} 35. f3 {[%emt 0:01:51]} f6 {[%emt 0:00:53]} 36. Rc1 {[%emt 0:00:52]} Ra8 {[%emt 0:00:15]} 37. Qe3 1/2-1/2